[Event "Live Chess"]
[Site "Chess.com"]
[Date "2023.05.21"]
[Round "-"]
[White "Hacker_2009"]
[Black "Ferrarifan27"]
[Result "1-0"]
[WhiteElo "1948"]
[BlackElo "2060"]
[TimeControl "300"]
[EndTime "5:28:13 PDT"]
[Termination "Hacker_2009 won by checkmate"]

1. d4 {[%clk 0:04:58.3]} 1... Nf6 {[%clk 0:04:58.1]} 2. Nf3 {[%clk 0:04:57.4]}
2... e6 {[%clk 0:04:54.8]} 3. c4 {[%clk 0:04:55.9]} 3... b6 {[%clk 0:04:50.9]}
4. Nc3 {[%clk 0:04:54.3]} 4... Bb7 {[%clk 0:04:50.1]} 5. e3 {[%clk 0:04:51.8]}
5... Bb4 {[%clk 0:04:48.9]} 6. Bd2 {[%clk 0:04:48.3]} 6... d6 {[%clk 0:04:47]}
7. a3 {[%clk 0:04:43.6]} 7... Bxc3 {[%clk 0:04:45.9]} 8. Bxc3 {[%clk 0:04:41.6]}
8... O-O {[%clk 0:04:44.3]} 9. Bd3 {[%clk 0:04:39.1]} 9... Nbd7 {[%clk
0:04:42.9]} 10. O-O {[%clk 0:04:35.4]} 10... Qe7 {[%clk 0:04:42]} 11. Rc1 {[%clk
0:04:31.4]} 11... Rad8 {[%clk 0:04:39.6]} 12. b4 {[%clk 0:04:29.2]} 12... Rfe8
{[%clk 0:04:35.6]} 13. Bb1 {[%clk 0:04:26.1]} 13... e5 {[%clk 0:04:33.5]} 14.
Bb2 {[%clk 0:04:22.4]} 14... h6 {[%clk 0:04:10.9]} 15. Qc2 {[%clk 0:04:14.3]}
15... Be4 {[%clk 0:04:04.4]} 16. Qe2 {[%clk 0:04:09.8]} 16... exd4 {[%clk
0:04:01.5]} 17. Nxd4 {[%clk 0:04:06.6]} 17... Ne5 {[%clk 0:03:30.8]} 18. Bxe4
{[%clk 0:03:57.1]} 18... Nxe4 {[%clk 0:03:28.9]} 19. Rfd1 {[%clk 0:03:49.4]}
19... Qh4 {[%clk 0:03:05]} 20. Nf3 {[%clk 0:03:28.8]} 20... Nxf3+ {[%clk
0:03:02.9]} 21. Qxf3 {[%clk 0:03:26.7]} 21... Ng5 {[%clk 0:02:54.9]} 22. Qg3
{[%clk 0:03:10.9]} 22... Qxg3 {[%clk 0:02:53]} 23. hxg3 {[%clk 0:03:08]} 23...
Ne4 {[%clk 0:02:51.4]} 24. Rd4 {[%clk 0:03:02.8]} 24... Ra8 {[%clk 0:02:45.6]}
25. b5 {[%clk 0:02:55.8]} 25... Nc5 {[%clk 0:02:42.1]} 26. Rg4 {[%clk
0:02:50.9]} 26... g6 {[%clk 0:02:39.9]} 27. Rh4 {[%clk 0:02:36.8]} 27... Kh7
{[%clk 0:02:36.1]} 28. Rf4 {[%clk 0:02:34.4]} 28... Re7 {[%clk 0:02:26.9]} 29.
Bf6 {[%clk 0:02:30.9]} 29... Rd7 {[%clk 0:02:17.4]} 30. Bd4 {[%clk 0:02:26.9]}
30... Nd3 {[%clk 0:02:14.2]} 31. Rd1 {[%clk 0:02:21.6]} 31... Nxf4 {[%clk
0:02:12.6]} 32. gxf4 {[%clk 0:02:19.8]} 32... a6 {[%clk 0:02:09.7]} 33. a4
{[%clk 0:02:17.9]} 33... axb5 {[%clk 0:02:08.5]} 34. axb5 {[%clk 0:02:17]} 34...
Ra4 {[%clk 0:02:07]} 35. Rc1 {[%clk 0:02:14.6]} 35... Rd8 {[%clk 0:02:02.5]} 36.
g4 {[%clk 0:02:12.8]} 36... Rda8 {[%clk 0:02:01.4]} 37. Kg2 {[%clk 0:02:11.8]}
37... f5 {[%clk 0:01:58.1]} 38. Kg3 {[%clk 0:02:06.8]} 38... fxg4 {[%clk
0:01:55.9]} 39. Kxg4 {[%clk 0:02:05.2]} 39... Kg8 {[%clk 0:01:50]} 40. Rh1
{[%clk 0:02:02.5]} 40... h5+ {[%clk 0:01:44.8]} 41. Kg5 {[%clk 0:02:00.6]} 41...
Kf7 {[%clk 0:01:43.9]} 42. f5 {[%clk 0:01:56.2]} 42... gxf5 {[%clk 0:01:42.5]}
43. Rxh5 {[%clk 0:01:54]} 43... Rxc4 {[%clk 0:01:40.9]} 44. Kxf5 {[%clk
0:01:50.9]} 44... Ra5 {[%clk 0:01:37.1]} 45. Rh7+ {[%clk 0:01:49.2]} 45... Ke8
{[%clk 0:01:34.7]} 46. Ke6 {[%clk 0:01:46.2]} 46... Rxd4 {[%clk 0:01:22]} 47.
Rh8# {[%clk 0:01:44.8]} 1-0

[Event "Live Chess"]
[Site "Chess.com"]
[Date "2023.05.21"]
[Round "-"]
[White "grillage"]
[Black "TheSmoulderingMaster"]
[Result "0-1"]
[WhiteElo "1802"]
[BlackElo "1640"]
[TimeControl "300"]
[EndTime "5:28:16 PDT"]
[Termination "TheSmoulderingMaster won by checkmate"]

1. d4 {[%clk 0:04:58.4]} 1... Nf6 {[%clk 0:04:58.6]} 2. Nc3 {[%clk 0:04:56]}
2... d6 {[%clk 0:04:57.8]} 3. e4 {[%clk 0:04:52.9]} 3... g6 {[%clk 0:04:56.9]}
4. Bf4 {[%clk 0:04:51.6]} 4... Bg7 {[%clk 0:04:56.1]} 5. Qd2 {[%clk 0:04:50.5]}
5... O-O {[%clk 0:04:55.3]} 6. O-O-O {[%clk 0:04:48.9]} 6... c6 {[%clk
0:04:54.5]} 7. Bh6 {[%clk 0:04:42.3]} 7... b5 {[%clk 0:04:51.8]} 8. Bxg7 {[%clk
0:04:41.1]} 8... Kxg7 {[%clk 0:04:48.8]} 9. h4 {[%clk 0:04:39.3]} 9... b4 {[%clk
0:04:48.1]} 10. Nb1 {[%clk 0:04:14.1]} 10... Nxe4 {[%clk 0:04:45.1]} 11. Qe3
{[%clk 0:04:12.2]} 11... d5 {[%clk 0:04:20.2]} 12. h5 {[%clk 0:04:11.1]} 12...
e6 {[%clk 0:04:13.3]} 13. hxg6 {[%clk 0:04:09.5]} 13... fxg6 {[%clk 0:04:12.2]}
14. Qh6+ {[%clk 0:04:08.4]} 14... Kf7 {[%clk 0:04:11.7]} 15. Qxh7+ {[%clk
0:04:07.2]} 15... Ke8 {[%clk 0:04:10.5]} 16. Qxg6+ {[%clk 0:04:05.7]} 16... Kd7
{[%clk 0:04:08.5]} 17. Rh7+ {[%clk 0:04:02.3]} 17... Kd6 {[%clk 0:04:07.6]} 18.
f3 {[%clk 0:03:38.1]} 18... Qg5+ {[%clk 0:04:05.3]} 19. Qxg5 {[%clk 0:03:31.6]}
19... Nxg5 {[%clk 0:04:04.5]} 20. Rg7 {[%clk 0:03:23.9]} 20... Nf7 {[%clk
0:03:56.4]} 21. c4 {[%clk 0:03:07]} 21... Ba6 {[%clk 0:03:50.9]} 22. c5+ {[%clk
0:03:00.8]} 22... Ke7 {[%clk 0:03:50]} 23. Bxa6 {[%clk 0:02:56.1]} 23... Nxa6
{[%clk 0:03:48]} 24. Nh3 {[%clk 0:02:47.5]} 24... Rg8 {[%clk 0:03:44]} 25. Rxg8
{[%clk 0:02:35.4]} 25... Rxg8 {[%clk 0:03:41.8]} 26. g4 {[%clk 0:02:34.3]} 26...
Nc7 {[%clk 0:03:37.9]} 27. Re1 {[%clk 0:02:28.6]} 27... Nb5 {[%clk 0:03:35.8]}
28. Rd1 {[%clk 0:02:20.9]} 28... Rh8 {[%clk 0:03:32.2]} 29. Nf4 {[%clk
0:02:18.8]} 29... Rh2 {[%clk 0:03:28.6]} 30. a4 {[%clk 0:02:13.5]} 30... bxa3
{[%clk 0:03:26.7]} 31. Nxa3 {[%clk 0:02:12.2]} 31... Nxa3 {[%clk 0:03:22.5]} 32.
bxa3 {[%clk 0:02:10.8]} 32... Ng5 {[%clk 0:03:20.5]} 33. Re1 {[%clk 0:02:04.7]}
33... Nxf3 {[%clk 0:03:17.8]} 34. Rxe6+ {[%clk 0:02:02.6]} 34... Kd7 {[%clk
0:03:16.2]} 35. Rd6+ {[%clk 0:02:00.2]} 35... Kc7 {[%clk 0:03:15]} 36. Ne6+
{[%clk 0:01:59.4]} 36... Kb7 {[%clk 0:03:13.7]} 37. Nd8+ {[%clk 0:01:53.7]}
37... Kc7 {[%clk 0:03:12.7]} 38. Nxc6 {[%clk 0:01:50.1]} 38... Rh1+ {[%clk
0:03:05.8]} 39. Kb2 {[%clk 0:01:46.3]} 39... Rh2+ {[%clk 0:03:04.2]} 40. Kc3
{[%clk 0:01:42.7]} 40... Rg2 {[%clk 0:03:01.6]} 41. Rg6 {[%clk 0:01:37]} 41...
Rg3 {[%clk 0:02:58.5]} 42. Rg7+ {[%clk 0:01:33.9]} 42... Kxc6 {[%clk 0:02:56.6]}
43. Kb4 {[%clk 0:01:28.9]} 43... Nxd4 {[%clk 0:02:53.8]} 44. Rg6+ {[%clk
0:01:25.6]} 44... Kc7 {[%clk 0:02:52.7]} 45. Rg7+ {[%clk 0:01:19.1]} 45... Kb8
{[%clk 0:02:44.7]} 46. g5 {[%clk 0:01:14.7]} 46... Rg4 {[%clk 0:02:40.3]} 47.
Ka5 {[%clk 0:01:12.5]} 47... Nc6+ {[%clk 0:02:38.2]} 48. Kb5 {[%clk 0:01:10.7]}
48... Nd4+ {[%clk 0:02:30]} 49. Ka6 {[%clk 0:01:08.3]} 49... Nf5 {[%clk
0:02:26.1]} 50. Rg8+ {[%clk 0:01:06]} 50... Kc7 {[%clk 0:02:24.8]} 51. Kxa7
{[%clk 0:01:05.2]} 51... Ra4# {[%clk 0:02:23.1]} 0-1

[Event "Live Chess"]
[Site "Chess.com"]
[Date "2023.05.21"]
[Round "-"]
[White "garyjc"]
[Black "GwaryTek"]
[Result "0-1"]
[WhiteElo "1041"]
[BlackElo "2062"]
[TimeControl "300"]
[EndTime "5:28:17 PDT"]
[Termination "GwaryTek won by resignation"]

1. e4 {[%clk 0:04:55.9]} 1... Nf6 {[%clk 0:04:59.1]} 2. Nc3 {[%clk 0:04:54.1]}
2... d5 {[%clk 0:04:53.7]} 3. e5 {[%clk 0:04:37.4]} 3... Ne4 {[%clk 0:04:51.2]}
4. Nxe4 {[%clk 0:04:33.2]} 4... dxe4 {[%clk 0:04:51.1]} 5. Ne2 {[%clk
0:04:23.4]} 5... Qd5 {[%clk 0:04:42.1]} 6. Nc3 {[%clk 0:04:18]} 6... Qxe5 {[%clk
0:04:40.8]} 7. d4 {[%clk 0:04:08.8]} 7... exd3+ {[%clk 0:04:39.3]} 8. Be3 {[%clk
0:04:00.5]} 8... dxc2 {[%clk 0:04:34]} 9. Qxc2 {[%clk 0:03:57.4]} 9... Nc6
{[%clk 0:04:33.4]} 10. Bd3 {[%clk 0:03:48.9]} 10... Nb4 {[%clk 0:04:29.9]} 11.
Qa4+ {[%clk 0:03:38.9]} 11... Nc6 {[%clk 0:04:28.6]} 12. O-O {[%clk 0:03:33.5]}
12... Bd7 {[%clk 0:04:25.8]} 13. Qb3 {[%clk 0:03:20]} 13... O-O-O {[%clk
0:04:20]} 14. Rfe1 {[%clk 0:03:17.9]} 14... Be6 {[%clk 0:04:12.2]} 15. Qc2
{[%clk 0:03:09.1]} 15... Nb4 {[%clk 0:04:10.1]} 16. Qa4 {[%clk 0:02:59.1]} 16...
Nxd3 {[%clk 0:04:05]} 17. Rf1 {[%clk 0:02:27.5]} 17... a6 {[%clk 0:03:52.3]} 0-1

[Event "Live Chess"]
[Site "Chess.com"]
[Date "2023.05.21"]
[Round "-"]
[White "MartynColebrook"]
[Black "LiamBellwood"]
[Result "0-1"]
[WhiteElo "966"]
[BlackElo "1914"]
[TimeControl "300"]
[EndTime "5:28:19 PDT"]
[Termination "LiamBellwood won by checkmate"]

1. e4 {[%clk 0:04:56.7]} 1... e6 {[%clk 0:04:59.9]} 2. d4 {[%clk 0:04:55]} 2...
d5 {[%clk 0:04:59.8]} 3. exd5 {[%clk 0:04:53.3]} 3... exd5 {[%clk 0:04:59.7]} 4.
c4 {[%clk 0:04:52]} 4... Nf6 {[%clk 0:04:57.1]} 5. Nc3 {[%clk 0:04:50]} 5... Bb4
{[%clk 0:04:55.9]} 6. Qa4+ {[%clk 0:04:45.5]} 6... Nc6 {[%clk 0:04:54.8]} 7.
cxd5 {[%clk 0:04:43.6]} 7... Nxd5 {[%clk 0:04:54.6]} 8. Bd2 {[%clk 0:04:38]}
8... O-O {[%clk 0:04:50.7]} 9. Nf3 {[%clk 0:04:31.9]} 9... Bg4 {[%clk
0:04:48.5]} 10. Nxd5 {[%clk 0:04:27.3]} 10... Bxd2+ {[%clk 0:04:47.7]} 11. Nxd2
{[%clk 0:04:23.7]} 11... Qxd5 {[%clk 0:04:47.6]} 12. Bc4 {[%clk 0:04:16.3]}
12... Rfe8+ {[%clk 0:04:45.2]} 13. Kf1 {[%clk 0:04:10]} 13... Qxd4 {[%clk
0:04:44.7]} 14. Qc2 {[%clk 0:03:56.7]} 14... Rad8 {[%clk 0:04:41.2]} 15. Nf3
{[%clk 0:03:50]} 15... Bxf3 {[%clk 0:04:38.5]} 16. gxf3 {[%clk 0:03:46.4]} 16...
Nb4 {[%clk 0:04:38.1]} 17. Qb3 {[%clk 0:03:44]} 17... Nd5 {[%clk 0:04:30.6]} 18.
Kg2 {[%clk 0:03:36]} 18... c6 {[%clk 0:04:20.6]} 19. Rad1 {[%clk 0:03:33.2]}
19... Nf4+ {[%clk 0:04:19.1]} 20. Kg3 {[%clk 0:03:27.8]} 20... Qf6 {[%clk
0:04:16.7]} 21. Rxd8 {[%clk 0:03:18.1]} 21... Qg5# {[%clk 0:04:14.6]} 0-1

[Event "Live Chess"]
[Site "Chess.com"]
[Date "2023.05.21"]
[Round "-"]
[White "davigator"]
[Black "Tiltador"]
[Result "1-0"]
[WhiteElo "2313"]
[BlackElo "804"]
[TimeControl "300"]
[EndTime "5:28:39 PDT"]
[Termination "davigator won by checkmate"]

1. e4 {[%clk 0:04:58.6]} 1... d5 {[%clk 0:04:55.7]} 2. exd5 {[%clk 0:04:56.9]}
2... Qxd5 {[%clk 0:04:54.5]} 3. Nc3 {[%clk 0:04:53.8]} 3... Qd6 {[%clk 0:04:53]}
4. d4 {[%clk 0:04:52.6]} 4... Nc6 {[%clk 0:04:51]} 5. Nge2 {[%clk 0:04:52.1]}
5... e6 {[%clk 0:04:48.3]} 6. a3 {[%clk 0:04:51.5]} 6... Bd7 {[%clk 0:04:45.9]}
7. Bf4 {[%clk 0:04:50.5]} 7... Qe7 {[%clk 0:04:35.6]} 8. Bxc7 {[%clk 0:04:49.9]}
8... Nf6 {[%clk 0:04:34]} 9. Nb5 {[%clk 0:04:48.3]} 9... Nd5 {[%clk 0:04:28.4]}
10. Nd6+ {[%clk 0:04:47.2]} 10... Qxd6 {[%clk 0:04:16.9]} 11. Bxd6 {[%clk
0:04:47.1]} 11... Bxd6 {[%clk 0:04:15.7]} 12. c4 {[%clk 0:04:45.2]} 12... Nc7
{[%clk 0:04:10.2]} 13. g3 {[%clk 0:04:41.2]} 13... O-O {[%clk 0:04:07.3]} 14.
Bg2 {[%clk 0:04:40.3]} 14... Na5 {[%clk 0:03:50.8]} 15. Qc2 {[%clk 0:04:34.6]}
15... Rab8 {[%clk 0:03:45.6]} 16. O-O {[%clk 0:04:31.3]} 16... b6 {[%clk
0:03:34.8]} 17. b4 {[%clk 0:04:28.6]} 17... Nc6 {[%clk 0:03:30.4]} 18. Rad1
{[%clk 0:04:26.2]} 18... Be7 {[%clk 0:03:10.6]} 19. d5 {[%clk 0:04:10.6]} 19...
exd5 {[%clk 0:02:59]} 20. cxd5 {[%clk 0:04:09.3]} 20... Ne5 {[%clk 0:02:43.9]}
21. Qxc7 {[%clk 0:04:07.7]} 21... Rbc8 {[%clk 0:02:38.5]} 22. Qxe5 {[%clk
0:04:05.4]} 22... Bb5 {[%clk 0:02:34.5]} 23. Qxe7 {[%clk 0:03:57.5]} 23... Rfe8
{[%clk 0:02:23.3]} 24. Qxa7 {[%clk 0:03:55.4]} 24... Bxe2 {[%clk 0:02:19.3]} 25.
Rfe1 {[%clk 0:03:54.3]} 25... Bxd1 {[%clk 0:02:16.3]} 26. Rxd1 {[%clk
0:03:50.4]} 26... Rc2 {[%clk 0:02:06.6]} 27. d6 {[%clk 0:03:47.4]} 27... Rd8
{[%clk 0:02:02]} 28. d7 {[%clk 0:03:44.9]} 28... f6 {[%clk 0:02:00.6]} 29. Qxb6
{[%clk 0:03:40.4]} 29... Rxd7 {[%clk 0:01:45.4]} 30. Qb8+ {[%clk 0:03:38]} 30...
Kf7 {[%clk 0:01:42.4]} 31. Rxd7+ {[%clk 0:03:37.5]} 31... Kg6 {[%clk 0:01:40.1]}
32. Be4+ {[%clk 0:03:35]} 32... f5 {[%clk 0:01:35]} 33. Qd6+ {[%clk 0:03:28.6]}
33... Kg5 {[%clk 0:01:31.2]} 34. Rxg7+ {[%clk 0:03:27.5]} 34... Kh5 {[%clk
0:01:26.8]} 35. Rxh7+ {[%clk 0:03:26.7]} 35... Kg5 {[%clk 0:01:25.1]} 36. Rg7+
{[%clk 0:03:22.1]} 36... Kh5 {[%clk 0:01:21.9]} 37. Bf3# {[%clk 0:03:18.5]} 1-0

[Event "Live Chess"]
[Site "Chess.com"]
[Date "2023.05.21"]
[Round "-"]
[White "JoeyCage"]
[Black "Tushinskiy"]
[Result "0-1"]
[WhiteElo "2249"]
[BlackElo "2220"]
[TimeControl "300"]
[EndTime "5:28:50 PDT"]
[Termination "Tushinskiy won on time"]

1. e4 {[%clk 0:04:55.9]} 1... e5 {[%clk 0:04:58.7]} 2. Nf3 {[%clk 0:04:54.8]}
2... d6 {[%clk 0:04:58.6]} 3. d4 {[%clk 0:04:53.5]} 3... Bg4 {[%clk 0:04:57]} 4.
dxe5 {[%clk 0:04:51.7]} 4... Nd7 {[%clk 0:04:54.8]} 5. exd6 {[%clk 0:04:50.5]}
5... Bxd6 {[%clk 0:04:53.8]} 6. Nc3 {[%clk 0:04:47.8]} 6... Qe7 {[%clk
0:04:52.7]} 7. Be2 {[%clk 0:04:46.3]} 7... Ngf6 {[%clk 0:04:51.4]} 8. h3 {[%clk
0:04:43.4]} 8... Bh5 {[%clk 0:04:50.2]} 9. g4 {[%clk 0:04:39.4]} 9... Bg6 {[%clk
0:04:48.9]} 10. Bg5 {[%clk 0:04:35.1]} 10... O-O-O {[%clk 0:04:47.3]} 11. Qc1
{[%clk 0:04:33]} 11... Bxe4 {[%clk 0:04:44.3]} 12. Nxe4 {[%clk 0:04:28.7]} 12...
Qxe4 {[%clk 0:04:42.7]} 13. Be3 {[%clk 0:04:24.5]} 13... Ne5 {[%clk 0:04:36.9]}
14. O-O {[%clk 0:03:05.1]} 14... Nxf3+ {[%clk 0:04:34.1]} 15. Bxf3 {[%clk
0:03:04.1]} 15... Qxf3 {[%clk 0:04:33.8]} 16. Rd1 {[%clk 0:02:54.1]} 16... Qxh3
{[%clk 0:04:30.6]} 17. Rd4 {[%clk 0:02:48.6]} 17... Nxg4 {[%clk 0:04:28.4]} 18.
Bf4 {[%clk 0:02:40]} 18... Bc5 {[%clk 0:04:21.6]} 19. Rxd8+ {[%clk 0:02:36.1]}
19... Rxd8 {[%clk 0:04:07.9]} 20. Bg3 {[%clk 0:02:34.6]} 20... Bxf2+ {[%clk
0:04:03.3]} 21. Bxf2 {[%clk 0:02:32.6]} 21... Qh2+ {[%clk 0:04:01.4]} 0-1

[Event "Live Chess"]
[Site "Chess.com"]
[Date "2023.05.21"]
[Round "-"]
[White "f4nomore"]
[Black "onemoretime1975"]
[Result "0-1"]
[WhiteElo "1402"]
[BlackElo "1857"]
[TimeControl "300"]
[EndTime "5:29:07 PDT"]
[Termination "onemoretime1975 won by resignation"]

1. b3 {[%clk 0:04:58.4]} 1... e5 {[%clk 0:04:56.6]} 2. Bb2 {[%clk 0:04:57.2]}
2... d6 {[%clk 0:04:55.4]} 3. e3 {[%clk 0:04:56.3]} 3... Nc6 {[%clk 0:04:51.8]}
4. Nf3 {[%clk 0:04:53]} 4... Nf6 {[%clk 0:04:49.4]} 5. Be2 {[%clk 0:04:52.1]}
5... g6 {[%clk 0:04:45.2]} 6. O-O {[%clk 0:04:50.7]} 6... Bg7 {[%clk 0:04:44]}
7. c4 {[%clk 0:04:49.5]} 7... O-O {[%clk 0:04:42.1]} 8. d4 {[%clk 0:04:47.9]}
8... exd4 {[%clk 0:04:39.6]} 9. Nxd4 {[%clk 0:04:45.4]} 9... Nxd4 {[%clk
0:04:38]} 10. Bxd4 {[%clk 0:04:42.5]} 10... Ne4 {[%clk 0:04:24.2]} 11. Bxg7
{[%clk 0:04:38.6]} 11... Kxg7 {[%clk 0:04:22]} 12. Qd4+ {[%clk 0:04:35.8]} 12...
Nf6 {[%clk 0:04:17.6]} 13. Nc3 {[%clk 0:04:32.9]} 13... Kg8 {[%clk 0:04:14.4]}
14. Ne4 {[%clk 0:04:27.3]} 14... Nxe4 {[%clk 0:04:11.4]} 15. Qxe4 {[%clk
0:04:23.9]} 15... Re8 {[%clk 0:04:08.3]} 16. Qd4 {[%clk 0:04:20.1]} 16... Bf5
{[%clk 0:04:01.6]} 17. Bf3 {[%clk 0:04:17.9]} 17... Rb8 {[%clk 0:03:57.2]} 18.
Rae1 {[%clk 0:04:15.5]} 18... Bd7 {[%clk 0:03:42.7]} 19. e4 {[%clk 0:04:11.7]}
19... Bc6 {[%clk 0:03:31.9]} 20. b4 {[%clk 0:04:06.7]} 20... b6 {[%clk
0:03:28.4]} 21. b5 {[%clk 0:04:02.6]} 21... Bb7 {[%clk 0:03:26.8]} 22. a4 {[%clk
0:03:52.9]} 22... Re5 {[%clk 0:03:11.2]} 23. Re3 {[%clk 0:03:50.3]} 23... Qe7
{[%clk 0:03:00.2]} 24. Rfe1 {[%clk 0:03:49]} 24... Re8 {[%clk 0:02:58.2]} 25. h3
{[%clk 0:03:36]} 25... h5 {[%clk 0:02:56.3]} 26. g3 {[%clk 0:03:21.1]} 26... Qe6
{[%clk 0:02:52.7]} 27. Bg2 {[%clk 0:03:19.2]} 27... Rc5 {[%clk 0:02:50.5]} 28.
Rc1 {[%clk 0:03:02.3]} 28... Qe5 {[%clk 0:02:30.1]} 29. Qd3 {[%clk 0:02:47.9]}
29... Ba8 {[%clk 0:02:15.7]} 30. f4 {[%clk 0:02:44.9]} 30... Qb2 {[%clk
0:02:05.7]} 31. Rc2 {[%clk 0:02:39.3]} 31... Qb1+ {[%clk 0:02:00.9]} 32. Kh2
{[%clk 0:02:36.5]} 32... Qa1 {[%clk 0:01:51]} 33. e5 {[%clk 0:02:27.2]} 33...
Bxg2 {[%clk 0:01:46.7]} 34. Rxg2 {[%clk 0:02:24.6]} 34... dxe5 {[%clk
0:01:44.8]} 35. fxe5 {[%clk 0:02:21.3]} 35... Rcxe5 {[%clk 0:01:43.3]} 36. Rf3
{[%clk 0:02:15.6]} 36... Re1 {[%clk 0:01:36.9]} 37. g4 {[%clk 0:02:00.2]} 37...
h4 {[%clk 0:01:34.6]} 0-1

[Event "Live Chess"]
[Site "Chess.com"]
[Date "2023.05.21"]
[Round "-"]
[White "SupremeTactician"]
[Black "LL220284LL"]
[Result "1-0"]
[WhiteElo "2248"]
[BlackElo "2286"]
[TimeControl "300"]
[EndTime "5:29:09 PDT"]
[Termination "SupremeTactician won by resignation"]

1. e4 {[%clk 0:04:55.3]} 1... c5 {[%clk 0:04:58.1]} 2. Nf3 {[%clk 0:04:54.2]}
2... Nc6 {[%clk 0:04:56.5]} 3. d4 {[%clk 0:04:51.9]} 3... cxd4 {[%clk
0:04:56.4]} 4. Nxd4 {[%clk 0:04:51.1]} 4... g6 {[%clk 0:04:55.9]} 5. Be3 {[%clk
0:04:47]} 5... Bg7 {[%clk 0:04:54.9]} 6. c4 {[%clk 0:04:44.9]} 6... Nf6 {[%clk
0:04:52]} 7. Nc3 {[%clk 0:04:42.6]} 7... O-O {[%clk 0:04:50.5]} 8. Be2 {[%clk
0:04:39.4]} 8... d6 {[%clk 0:04:50.1]} 9. O-O {[%clk 0:04:37.6]} 9... Bd7 {[%clk
0:04:48.6]} 10. f3 {[%clk 0:04:36.6]} 10... Nxd4 {[%clk 0:04:47.1]} 11. Bxd4
{[%clk 0:04:35.1]} 11... Bc6 {[%clk 0:04:46.7]} 12. Qd2 {[%clk 0:04:34]} 12...
a5 {[%clk 0:04:45.7]} 13. Rac1 {[%clk 0:04:32.3]} 13... a4 {[%clk 0:04:43.4]}
14. Rfd1 {[%clk 0:04:31.7]} 14... a3 {[%clk 0:04:39.1]} 15. b3 {[%clk
0:04:28.3]} 15... Nd7 {[%clk 0:04:38.2]} 16. Nd5 {[%clk 0:04:25.3]} 16... Bxd4+
{[%clk 0:04:32.8]} 17. Qxd4 {[%clk 0:04:25.2]} 17... Nc5 {[%clk 0:04:28.6]} 18.
e5 {[%clk 0:04:18.6]} 18... Ne6 {[%clk 0:04:08.2]} 19. Qe3 {[%clk 0:04:07.3]}
19... Bxd5 {[%clk 0:03:52.8]} 20. cxd5 {[%clk 0:04:04.1]} 20... Nc5 {[%clk
0:03:50.6]} 21. f4 {[%clk 0:03:41.7]} 21... Qb6 {[%clk 0:03:43.4]} 22. Rc4
{[%clk 0:03:33.1]} 22... Rfc8 {[%clk 0:03:25]} 23. Rdc1 {[%clk 0:03:20.8]} 23...
Nd7 {[%clk 0:03:23.8]} 24. Rxc8+ {[%clk 0:03:17.1]} 1-0

[Event "Live Chess"]
[Site "Chess.com"]
[Date "2023.05.21"]
[Round "-"]
[White "RockTroll"]
[Black "GEMdzq"]
[Result "1-0"]
[WhiteElo "2225"]
[BlackElo "2260"]
[TimeControl "300"]
[EndTime "5:29:18 PDT"]
[Termination "RockTroll won by checkmate"]

1. Nf3 {[%clk 0:04:58]} 1... c5 {[%clk 0:04:57.9]} 2. g3 {[%clk 0:04:57.9]} 2...
Nc6 {[%clk 0:04:56.7]} 3. Bg2 {[%clk 0:04:56.7]} 3... Nf6 {[%clk 0:04:55.6]} 4.
O-O {[%clk 0:04:55.5]} 4... d5 {[%clk 0:04:53.4]} 5. d3 {[%clk 0:04:54.7]} 5...
e5 {[%clk 0:04:52.4]} 6. Na3 {[%clk 0:04:53.7]} 6... Be7 {[%clk 0:04:50.8]} 7.
e4 {[%clk 0:04:52.5]} 7... dxe4 {[%clk 0:04:46.3]} 8. dxe4 {[%clk 0:04:51.4]}
8... Qc7 {[%clk 0:04:45.6]} 9. c3 {[%clk 0:04:43.1]} 9... h6 {[%clk 0:04:41.6]}
10. Nb5 {[%clk 0:04:34.9]} 10... Qb8 {[%clk 0:04:37.8]} 11. a4 {[%clk
0:04:18.9]} 11... O-O {[%clk 0:04:35.8]} 12. h3 {[%clk 0:04:15.1]} 12... a6
{[%clk 0:04:32.6]} 13. Na3 {[%clk 0:04:12.2]} 13... Be6 {[%clk 0:04:32.2]} 14.
Qe2 {[%clk 0:04:08.1]} 14... b5 {[%clk 0:04:27.1]} 15. axb5 {[%clk 0:03:48.9]}
15... axb5 {[%clk 0:04:27]} 16. Be3 {[%clk 0:03:47.9]} 16... c4 {[%clk
0:04:19.2]} 17. Nh4 {[%clk 0:03:40.5]} 17... Nd7 {[%clk 0:04:13.1]} 18. Nf5
{[%clk 0:03:38.7]} 18... Bf6 {[%clk 0:04:01]} 19. Rfd1 {[%clk 0:03:14.3]} 19...
Rd8 {[%clk 0:03:49.5]} 20. Nd6 {[%clk 0:03:08.8]} 20... b4 {[%clk 0:03:33.5]}
21. Naxc4 {[%clk 0:03:03.7]} 21... Rxa1 {[%clk 0:03:28.6]} 22. Rxa1 {[%clk
0:03:02.4]} 22... bxc3 {[%clk 0:03:26.3]} 23. bxc3 {[%clk 0:03:02.3]} 23... Be7
{[%clk 0:03:25.1]} 24. Nf5 {[%clk 0:02:48.8]} 24... Bf8 {[%clk 0:03:19.8]} 25.
Rd1 {[%clk 0:02:25.4]} 25... Qb5 {[%clk 0:03:15.6]} 26. Bf1 {[%clk 0:02:22.2]}
26... Nc5 {[%clk 0:02:40.4]} 27. Ncd6 {[%clk 0:02:13.2]} 27... Qxe2 {[%clk
0:02:36.2]} 28. Bxe2 {[%clk 0:02:12.1]} 28... Bxf5 {[%clk 0:02:25.7]} 29. Bxc5
{[%clk 0:02:06.9]} 29... Bxh3 {[%clk 0:01:50.3]} 30. g4 {[%clk 0:02:05.6]} 30...
h5 {[%clk 0:01:32.1]} 31. f3 {[%clk 0:02:03.6]} 31... hxg4 {[%clk 0:01:29.8]}
32. fxg4 {[%clk 0:02:02.8]} 32... Ra8 {[%clk 0:01:29.4]} 33. Rd2 {[%clk
0:01:54.2]} 33... Ra1+ {[%clk 0:01:27.9]} 34. Kh2 {[%clk 0:01:53.3]} 34... Bf1
{[%clk 0:01:27]} 35. Bd1 {[%clk 0:01:42.2]} 35... Ba6 {[%clk 0:01:22.2]} 36. Bb3
{[%clk 0:01:40.8]} 36... Bxd6 {[%clk 0:01:10.4]} 37. Rxd6 {[%clk 0:01:39.9]}
37... Bb5 {[%clk 0:00:41.5]} 38. Bd5 {[%clk 0:01:38.9]} 38... Na5 {[%clk
0:00:29.3]} 39. Rd8+ {[%clk 0:01:37.5]} 39... Kh7 {[%clk 0:00:27.9]} 40. Bxf7
{[%clk 0:01:37.1]} 40... Nb3 {[%clk 0:00:21.8]} 41. Be3 {[%clk 0:01:32.9]} 41...
g6 {[%clk 0:00:15.5]} 42. Bxb3 {[%clk 0:01:27.7]} 42... Re1 {[%clk 0:00:12.9]}
43. Bg5 {[%clk 0:01:25.4]} 43... Rxe4 {[%clk 0:00:11.1]} 44. Rb8 {[%clk
0:01:20.9]} 44... Bd7 {[%clk 0:00:08.8]} 45. Rb7 {[%clk 0:01:19.2]} 45... Rxg4
{[%clk 0:00:08.4]} 46. Rxd7+ {[%clk 0:01:18.2]} 46... Kh8 {[%clk 0:00:04.8]} 47.
Bf6# {[%clk 0:01:17.8]} 1-0